Cogmind - Beta 17 @@@ ROGUE MODE // 2026.07.25 @ 02:23:23 Player: kite Result: Self-destructed Performance ------------- Evolutions (3) 1500 Regions Visited (14) 2800 Robots Destroyed (170) 850 Value Destroyed (8176) 8176 Prototype IDs (216) 4320 Alien Tech Used (0) 0 Bonus (5477) 5477 TOTAL SCORE: 23123 Bonus ------- High Alert Combat Kills 1533 Follower Combat Kills 110 Entered Garrisons 400 Met Data Miner 300 Used Data Conduit 3000 Acquired ECA 300 Friendly Fire -166 Cogmind --------- Core Integrity 230/700 Matter 240/300 Energy 100/100 System Corruption 17% Temperature Cool (0) Movement Rolling (140) Ox4 Location -7/Data Miner Parts ------- > --- POWER (1) -------- (None) > --- PROPULSION (4) --- Light Treads Wheel > --- UTILITY (4) ------ High-capacity Storage Unit > --- WEAPON (4) ------- Mace Great Maul Powered Hammer > --- INVENTORY (20) --- Heavy Deuterium Engine Enhanced Nuclear Core Wheel Cargo Storage Unit Transmission Jammer System Shield Grenade Launcher Axe Greatsword Peak State ------------ > --- POWER ------------ Enhanced Nuclear Core > --- PROPULSION ------- Light Treads Improved Medium Treads Improved Medium Treads Improved Medium Treads > --- UTILITY ---------- Large Storage Unit Advanced Melee Analysis Suite Core Analyzer Layered Medium Armor Plating > --- WEAPON ----------- Great Maul Powered Hammer Greatsword > --- INVENTORY -------- Enhanced Nuclear Core Light Treads Cargo Storage Unit Improved Medium Armor Plating Improved Medium Armor Plating Heavy Insulated Plating Grenade Launcher Mace Mace Greatsword Greatsword [Rating: 55] Favorites ----------- Power Heavy Ion Engine Engine Heavy Ion Engine Power Core Enhanced Nuclear Core Propulsion Light Treads Treads Light Treads Leg Aluminum Leg Wheel Wheel Utility Large Storage Unit Device Improved Terrain Scanner Storage Large Storage Unit Processor Core Analyzer Hackware Hacking Suite Protection Improved Light Armor Plating Weapon Great Maul Energy Gun Medium Laser Energy Cannon Light EM Pulse Cannon Ballistic Gun Gauss Rifle Launcher Grenade Launcher Impact Weapon Great Maul Slashing Weapon Greatsword Build | -11 -10 -10 -9 -9 -9 -8 -8 -8 -8 -8 -7 -7 -7 -7 ------- Run | Yrd Mat Min Mat Min Exi Min Mat Gar Mat Gar Fac Low Low Dat Slots Evolved 6 | . . . 2 . . . 2 . . . 2 . . . Power . | . . . . . . . . . . . . . . . Propulsion 2 | . . . 2 . . . . . . . . . . . Utility 2 | . . . . . . . . . . . 2 . . . Weapon 2 | . . . . . . . 2 . . . . . . . Parts Attached 91 | 6 5 1 13 1 . . 7 9 1 17 22 7 1 1 Power 12 | 1 . . 4 . . . . . . 2 5 . . . Engine 7 | 1 . . 3 . . . . . . 1 2 . . . Core 5 | . . . 1 . . . . . . 1 3 . . . Reactor . | . . . . . . . . . . . . . . . Propulsion 31 | 2 . . 5 . . . 2 5 . 8 6 2 1 . Treads 18 | 2 . . 5 . . . 2 . . 6 1 1 1 . Leg 7 | . . . . . . . . 5 . 2 . . . . Wheel 6 | . . . . . . . . . . . 5 1 . . Hover . | . . . . . . . . . . . . . . . Flight . | . . . . . . . . . . . . . . . Utility 24 | 1 3 . 1 . . . . 1 1 5 8 4 . . Device 3 | . . . . . . . . . . . 1 2 . . Storage 5 | 1 2 . . . . . . . . . 2 . . . Processor 5 | . . . . . . . . 1 . 2 2 . . . Hackware 2 | . . . . . . . . . . 1 1 . . . Protection 9 | . 1 . 1 . . . . . 1 2 2 2 . . Artifact . | . . . . . . . . . . . . . . . Weapon 24 | 2 2 1 3 1 . . 5 3 . 2 3 1 . 1 Energy Gun 2 | 2 . . . . . . . . . . . . . . Energy Cannon 3 | . 2 1 . . . . . . . . . . . . Ballistic Gun 1 | . . . . . . . . 1 . . . . . . Ballistic Cannon . | . . . . . . . . . . . . . . . Launcher 3 | . . . 1 . . . . 2 . . . . . . Special Weapon . | . . . . . . . . . . . . . . . Impact Weapon 9 | . . . 2 1 . . 3 . . 2 1 . . . Slashing Weapon 6 | . . . . . . . 2 . . . 2 1 . 1 Piercing Weapon . | . . . . . . . . . . . . . . . Special Melee Weapon . | . . . . . . . . . . . . . . . Unidentified Prototypes 4 | . . . 1 . . . . . . . 3 . . . Corrupted Parts 4 | . . . 1 . . . . . . 3 . . . . System Corruption 35 | . . . 1 . . . . . . 34 . . . . Parts Lost 41 | . . 1 2 . . . 1 5 . 12 8 6 . 6 Power 4 | . . . . . . . . . . 2 1 . . 1 Propulsion 22 | . . . 2 . . . . 5 . 5 5 3 . 2 Utility 7 | . . . . . . . . . . 2 1 2 . 2 Weapon 8 | . . 1 . . . . 1 . . 3 1 1 . 1 Highest Loss Streak 6 | . . 1 1 . . . 1 2 . 5 4 6 . 6 To Critical Strikes 1 | . . . . . . . . . . . . 1 . . Average Backups 11 | . 7 8 12 14 15 15 14 14 15 10 10 13 10 10 Power 1 | . 1 1 1 2 2 2 2 1 1 . . 2 2 2 Propulsion . | . . 1 . . . . . 1 1 . 1 2 . 1 Utility 4 | . 2 3 5 8 8 8 7 5 5 4 3 4 4 3 Weapon 4 | . 3 3 3 4 5 5 3 6 7 4 5 4 4 4 Tool/Special . | . . . . . . . . . . . . . . . Unused Backups 24 | . 1 . 5 1 . . 2 2 . 4 5 . . 4 Power 3 | . . . 1 . . . . . . . . . . 2 Propulsion 5 | . . . 1 . . . . 2 . . 2 . . . Utility 12 | . . . 3 . . . 2 . . 3 2 . . 2 Weapon 3 | . 1 . . 1 . . . . . . 1 . . . Tool/Special 1 | . . . . . . . . . . 1 . . . . Average Slot Usage (%) 94 | . 99 99 92 100 100 100 99 97 100 96 88 89 84 77 Engine 8 | . 14 14 11 11 11 11 9 9 9 7 2 7 7 7 Treads 23 | . 28 28 36 44 44 44 36 16 . 15 22 1 12 14 Leg 6 | . . . . . . . . 17 36 17 . . . . Wheel 3 | . . . . . . . . . . . 5 27 17 14 Storage 11 | . 14 28 20 11 11 11 9 9 9 9 7 7 7 7 Processor 4 | . . . . . . . . 9 4 1 14 12 7 6 Protection 5 | . 12 . 1 11 11 11 9 . 4 6 6 7 7 6 Energy Cannon 4 | . 26 27 9 . . . . . . . . . . . Impact Weapon 19 | . . . 12 21 22 22 26 26 27 31 15 15 15 9 Slashing Weapon 4 | . . . . . . . 8 8 9 2 6 7 7 9 Peak Build Rating 55 | 6 11 10 21 22 21 21 28 28 27 40 55 43 38 43 Average Rating 27 | 4 10 9 15 21 21 21 26 27 27 29 48 41 37 37 On Entrance 23 | . 6 10 10 21 21 21 21 28 27 27 40 42 38 38 Avg Prop Armor Cover (%) 10 | . . . . . . . . 10 . 10 7 7 11 12 Naked Turns . | . . . . . . . . . . . . . . . Heaviest Build 78 | 11 38 33 38 37 37 37 45 42 44 48 70 78 70 75 Greatest Support 110 | 40 40 40 89 89 89 89 89 89 45 110 110 46 30 20 Greatest Overweight (x) 4 | . . . . . . . . 2 . 2 4 3 3 3 Average Overweight (x) . | . . . . . . . . . . . . 1 2 3 Largest Inventory Capacity 20 | 8 15 15 15 15 15 15 15 15 15 15 20 20 20 20 Average Capacity 15 | 6 8 15 15 15 15 15 15 15 15 15 15 20 20 20 Most Carried 18 | 2 9 9 15 15 15 15 15 15 15 15 16 18 13 14 Average Carried 12 | . 7 8 12 14 15 15 14 14 14 11 14 16 12 12 Final Capacity 20 | 8 15 15 15 15 15 15 15 15 15 15 20 20 20 20 Final Carried 16 | 2 9 8 15 15 15 15 15 15 15 15 16 12 13 11 Class Distribution -------------------- 57% | Mutant 24% | Scavenger-Gladiator 9% | Gladiator 7% | Scavenger-Mutant Dominant Class ---------------- Mutant | -10/Materials Mutant | -10/Mines Mutant | -9/Materials Mutant | -9/Mines Mutant | -9/Exiles Mutant | -8/Mines Mutant | -8/Materials Gladiator | -8/Garrison Mutant | -8/Materials Mutant | -8/Garrison Scavenger-Gladiator | -7/Factory Scavenger-Gladiator | -7/Lower Caves Mutant | -7/Lower Caves Mutant | -7/Data Miner Resources | -11 -10 -10 -9 -9 -9 -8 -8 -8 -8 -8 -7 -7 -7 -7 ----------- Run | Yrd Mat Min Mat Min Exi Min Mat Gar Mat Gar Fac Low Low Dat Matter Collected 2090 | 121 169 25 140 58 . . 80 274 82 668 276 160 37 . Remotely . | . . . . . . . . . . . . . . . Salvage Created 6380 | . 342 212 941 93 . . 687 623 205 1261 1598 376 42 . Parts 275 | . 14 12 48 3 . . 34 36 14 42 67 5 . . Haulers Intercepted 7 | . 1 . 3 . . . . . . . 3 . . . Recyclers Shooed 1 | . 1 . . . . . . . . . . . . . Parts Field Recycled . | . . . . . . . . . . . . . . . Retrieved Matter . | . . . . . . . . . . . . . . . Parts Self-Destructed 4 | . . . . . . . . . . . . 4 . . Prevented 1 | . . . . . . . . . . . . 1 . . Parts Restored . | . . . . . . . . . . . . . . . Kills | -11 -10 -10 -9 -9 -9 -8 -8 -8 -8 -8 -7 -7 -7 -7 ------- Run | Yrd Mat Min Mat Min Exi Min Mat Gar Mat Gar Fac Low Low Dat Combat Hostiles Destroyed 132 | . 7 5 21 . . . 14 19 . 36 23 7 . . Melee 56 | . 1 . 2 . . . 9 7 . 15 16 6 . . Cannons 17 | . 4 5 8 . . . . . . . . . . . AOE 27 | . 1 . 6 . . . . 9 . 11 . . . . Classes Destroyed 16 | . 4 1 5 1 . . 2 1 . 1 1 . . . Worker 9 | . . . 2 1 . . . . 1 . 5 . . . Builder 7 | . . . 3 . . . . . 2 . 2 . . . Tunneler 1 | . . . . 1 . . . . . . . . . . Hauler 7 | . 1 . 3 . . . . . . . 3 . . . Recycler 7 | . 1 . . 1 . . . . 1 . 4 . . . Operator 1 | . . . . . . . . . . . 1 . . . Watcher 6 | . . . 3 . . . 1 . . 2 . . . . Swarmer 26 | . 3 . 7 . . . . 4 . 9 3 . . . Grunt 56 | . 4 4 11 . . . 10 7 . 5 12 3 . . Brawler 6 | . . . . . . . 1 . . 3 . 2 . . Duelist 4 | . . . 1 . . . . . . 1 1 1 . . Sentry 16 | . . . 2 . . . 2 3 . 7 1 1 . . Hunter 8 | . . . . . . . 1 4 . 2 1 . . . Programmer 14 | . . . . . . . . 1 . 8 5 . . . Behemoth 1 | . . . . . . . . . . 1 . . . . Decomposer 2 | . . . . . . . . . . . . . 2 . Assembled 1 | . . 1 . . . . . . . . . . . . Guerrilla 1 | . . . . . . . . . 1 . . . . . Best Kill Streak 9 | . 5 2 4 1 . . 6 5 3 7 9 5 . . Combat Bots Only 7 | . 5 2 4 . . . 5 5 . 7 6 5 . . Max Kills in Single Turn 3 | . 1 1 2 1 . . 1 3 1 3 1 1 1 . Gunslinging . | . . . . . . . . . . . . . . . Exploded 3 | . 1 . 2 . . . . 3 . 3 . . . . Melee 1 | . 1 . 1 . . . 1 1 . 1 1 1 . . Uniques/NPCs Destroyed . | . . . . . . . . . . . . . . . Combat | -11 -10 -10 -9 -9 -9 -8 -8 -8 -8 -8 -7 -7 -7 -7 -------- Run | Yrd Mat Min Mat Min Exi Min Mat Gar Mat Gar Fac Low Low Dat Hostile Shots Fired 642 | . 34 10 68 . . . 52 71 . 166 155 63 . 23 Missed 164 | . 7 4 16 . . . 12 18 . 42 41 15 . 9 Hits 478 | . 27 6 52 . . . 40 53 . 124 114 48 . 14 Melee 13 | . . . 1 . . . 2 . . 3 3 4 . . Projectile 465 | . 27 6 51 . . . 38 53 . 121 111 44 . 14 AOE 6 | . . . . . . . . 6 . . . . . . Critical Strikes 22 | . . . 1 . . . 1 2 . 6 7 5 . . Part Disruptions 1 | . . . . . . . . . . . 1 . . . Damage Taken 8050 | . 271 74 697 . . . 569 922 21 1920 1673 959 . 944 Core 1107 | . 53 10 105 . . . 60 182 . 227 144 99 . 227 Absorbed by Shields . | . . . . . . . . . . . . . . . Core Remaining (%) 65 | 100 . 74 . . . 73 . . . 14 . . . . Volleys Fired 108 | . 29 10 39 . . . . 13 . 17 . . . . Largest 3 | . 2 2 2 . . . . 3 . 2 . . . . Hottest 112 | . 112 112 112 . . . . 93 . 63 . . . . Shots Fired 172 | . 33 17 75 . . . . 21 . 26 . . . . Gun 5 | . . . . . . . . 5 . . . . . . Cannon 122 | . 33 17 72 . . . . . . . . . . . Launcher 45 | . . . 3 . . . . 16 . 26 . . . . Special . | . . . . . . . . . . . . . . . Kinetic 5 | . . . . . . . . 5 . . . . . . Thermal . | . . . . . . . . . . . . . . . Explosive 45 | . . . 3 . . . . 16 . 26 . . . . Electromagnetic 122 | . 33 17 72 . . . . . . . . . . . Robot Hit Streak 12 | . 12 6 6 . . . . 3 . 10 . . . . Robot Miss Streak 2 | . 1 1 2 . . . . 2 . 2 . . . . Penetration Max . | . . . . . . . . . . . . . . . Secondary Targets . | . . . . . . . . . . . . . . . Shots Hit Robots 393 | . 27 13 65 3 . . 35 37 6 93 76 26 2 10 Core Hits 144 | . 8 7 26 1 . . 9 22 4 32 25 6 2 2 Critical Kills 4 | . . . . . . . 1 . . 2 1 . . . Critical Parts Destroyed 42 | . . . 6 . . . 2 6 . 17 6 4 . 1 Critical Strikes 58 | . 1 1 7 . . . 4 8 . 19 11 6 . 1 Corrupt 3 | . 1 1 1 . . . . . . . . . . . Smash 47 | . . . 6 . . . 3 6 . 19 8 4 . 1 Sever 8 | . . . . . . . 1 2 . . 3 2 . . Melee Attacks 443 | . . . 32 3 . . 53 53 14 112 115 32 3 26 Impact 314 | . . . 32 3 . . 33 32 4 104 72 19 1 14 Slashing 129 | . . . . . . . 20 21 10 8 43 13 2 12 Piercing . | . . . . . . . . . . . . . . . Sneak Attacks 41 | . . . 5 3 . . . . 6 6 17 . 2 2 Combat Hostiles 3 | . . . . . . . . . . 1 2 . . . Follow-up Attacks 87 | . . . 2 . . . 11 13 . 32 17 9 . 3 Damage Inflicted 18078 | . 738 289 2676 257 . . 1259 2101 438 3863 4719 1110 215 413 Guns . | . . . . . . . . . . . . . . . Cannons 1935 | . 621 289 1025 . . . . . . . . . . . Explosions 2457 | . 105 . 582 . . . . 823 . 947 . . . . Melee 13674 | . . . 1069 257 . . 1259 1278 438 2916 4719 1110 215 413 Ramming 12 | . 12 . . . . . . . . . . . . . Kinetic . | . . . . . . . . . . . . . . . Thermal 414 | . 105 . 309 . . . . . . . . . . . Explosive 2043 | . . . 273 . . . . 823 . 947 . . . . Electromagnetic 1935 | . 621 289 1025 . . . . . . . . . . . Impact 9017 | . . . 1069 257 . . 808 883 . 2773 2426 533 . 268 Slashing 4657 | . . . . . . . 451 395 438 143 2293 577 215 145 Piercing . | . . . . . . . . . . . . . . . Highest Corruption 41 | . . . 1 1 1 1 . 1 1 41 7 10 10 17 Average Corruption 7 | . . . 1 1 1 1 . 1 1 15 6 7 10 10 Corruption Purged . | . . . . . . . . . . . . . . . Corruption Blocked . | . . . . . . . . . . . . . . . Effects 136 | . . . 8 4 . . . 4 1 63 14 24 12 6 Message Errors 35 | . . . 3 . . . . 1 1 18 3 5 2 2 Matter Fused 37 | . . . 2 1 . . . 2 . 17 4 6 3 2 Heat Flow Errors 13 | . . . . . . . . . . 6 4 1 2 . Energy Discharges 10 | . . . . . . . . 1 . 4 . 2 2 1 Parts Rejected 3 | . . . . . . . . . . 3 . . . . Parts Fused 2 | . . . 1 . . . . . . . . 1 . . Data Loss (minor) 25 | . . . 2 1 . . . . . 10 2 8 1 1 Data Loss (major) 6 | . . . . 2 . . . . . 2 . 1 1 . Alerts 3 | . . . . . . . . . . 1 1 . 1 . Misdirections 2 | . . . . . . . . . . 2 . . . . Overload Shots . | . . . . . . . . . . . . . . . Overflow Damage 3313 | . . . 502 139 . . 100 283 66 984 1055 158 . 26 Projectiles 10 | . . . 10 . . . . . . . . . . . Explosions 58 | . . . 4 . . . . 36 . 18 . . . . Melee 3245 | . . . 488 139 . . 100 247 66 966 1055 158 . 26 Knockbacks 31 | . . . 3 1 . . 1 2 . 5 19 . . . Impact 30 | . . . 3 1 . . 1 2 . 5 18 . . . Kinetic . | . . . . . . . . . . . . . . . Secondary 1 | . . . . . . . . . . . 1 . . . Self-Inflicted Damage 166 | . . . 49 . . . . . . 117 . . . . Shots 7 | . . . 2 . . . . . . 5 . . . . Rammed 4 | . 4 . . . . . . . . . . . . . Targets Rammed 5 | . 5 . . . . . . . . . . . . . Kicked . | . . . . . . . . . . . . . . . Crushed 1 | . 1 . . . . . . . . . . . . . Highest Temperature 402 | . 146 171 402 . . . 9 92 . 275 231 245 183 . Average Temperature 85 | . 60 71 102 . . . 9 57 . 103 76 132 83 . Received Heat Transfer 2207 | . 105 56 258 . . . 252 153 9 390 660 324 . . Siege Activations . | . . . . . . . . . . . . . . . Martial Activations . | . . . . . . . . . . . . . . . Shielding Activations . | . . . . . . . . . . . . . . . Robots Disrupted . | . . . . . . . . . . . . . . . Combat Hostiles . | . . . . . . . . . . . . . . . Robots Corrupted 43 | . 1 . 8 2 . . 5 3 . 12 11 1 . . Combat Hostiles 32 | . 1 . 5 . . . 5 3 . 10 7 1 . . Parts Fried 52 | . 4 1 14 4 . . 4 1 . 12 7 5 . . Impact Corruptions 102 | . . . 15 3 . . 6 10 . 35 26 6 . 1 Robots Melted . | . . . . . . . . . . . . . . . Combat Hostiles . | . . . . . . . . . . . . . . . Parts Melted . | . . . . . . . . . . . . . . . Heat Transferred 500 | . 150 . 350 . . . . . . . . . . . Parts Sabotaged . | . . . . . . . . . . . . . . . Parts Stolen . | . . . . . . . . . . . . . . . Parts Stripped . | . . . . . . . . . . . . . . . Power Chain Reactions 8 | . 2 . 6 . . . . . . . . . . . Alert | -11 -10 -10 -9 -9 -9 -8 -8 -8 -8 -8 -7 -7 -7 -7 ------- Run | Yrd Mat Min Mat Min Exi Min Mat Gar Mat Gar Fac Low Low Dat Maximum Alert Level 5 | . . . 2 . . . 1 4 2 5 4 . . . Low Security (%) 33 | 100 100 100 22 100 . 100 83 6 . . . . . . Level 1 14 | . . . 76 . . . 16 14 . 1 . . . . Level 2 15 | . . . . . . . . 48 100 22 . . . . Level 3 23 | . . . . . . . . 28 . 26 94 . . . Level 4 11 | . . . . . . . . 2 . 44 5 . . . Level 5 1 | . . . . . . . . . . 5 . . . . High Security . | . . . . . . . . . . . . . . . Max Security . | . . . . . . . . . . . . . . . Peak Influence 1805 | . 109 50 400 151 . . 228 1134 577 1805 1125 . . . Initial 947 | . . 36 16 151 . . . 135 552 358 947 . . . Average 540 | . 26 7 221 44 . . 135 583 553 1101 924 . . . Influence Increases 5061 | . 227 90 796 15 . . 408 1049 69 1587 680 140 . . Destroy 0b10 Robot/C 2700 | . 140 80 420 . . . 280 420 20 740 460 140 . . Destroy 0b10 Robot/NC 190 | . 10 . 55 15 . . 5 . 20 10 75 . . . Destroy Leader 362 | . 32 10 102 . . . 72 20 10 30 86 . . . Allied During Kill 14 | . . . . . . . . 6 5 3 . . . . Successful Hack 73 | . 7 . . . . . 16 21 10 12 7 . . . Disable Machine 90 | . 15 . 30 . . . . 15 . 30 . . . . Anti-Garrison Action 1050 | . . . . . . . . 450 . 600 . . . . Destroy Structure 252 | . 8 . 54 . . . 5 72 4 102 7 . . . Partial Spotted 15 | . . . . . . . . . . . 15 . . . Lose Combat Pursuer 315 | . 15 . 135 . . . 30 45 . 60 30 . . . Influence Decreases 5061 | . 133 142 450 403 . . 200 123 652 333 1366 785 261 213 Entered New Map 2746 | . . 58 26 237 . . . 73 582 193 858 415 91 213 Time Decay 1955 | . 133 84 404 166 . . 190 . 70 . 428 310 170 . Lost Part 340 | . . . 20 . . . 10 50 . 120 80 60 . . Lost Ally 20 | . . . . . . . . . . 20 . . . . Squads Dispatched 14 | . 2 . 3 . . . 4 . . . 5 . . . Investigation 5 | . 1 . 2 . . . 1 . . . 1 . . . Extermination 2 | . . . . . . . . . . . 2 . . . Reinforcement 7 | . 1 . 1 . . . 3 . . . 2 . . . Assault . | . . . . . . . . . . . . . . . Garrison . | . . . . . . . . . . . . . . . Intercept . | . . . . . . . . . . . . . . . Searches Triggered . | . . . . . . . . . . . . . . . Construction Impeded . | . . . . . . . . . . . . . . . Haulers Reinforced 1 | . . . . . . . . . . . 1 . . . Active Scanning Responses . | . . . . . . . . . . . . . . . Cargo Convoy Interrupts 1 | . . . . . . . . . . . 1 . . . Stealth | -11 -10 -10 -9 -9 -9 -8 -8 -8 -8 -8 -7 -7 -7 -7 --------- Run | Yrd Mat Min Mat Min Exi Min Mat Gar Mat Gar Fac Low Low Dat Distress Signals 14 | . . . 6 . . . . . . 8 . . . . Communications Jammed . | . . . . . . . . . . . . . . . Distress Signals . | . . . . . . . . . . . . . . . Times Spotted 187 | . 13 5 37 . . . 20 19 3 47 32 7 . 4 Peak Tracking Total 9 | . 2 2 6 . . . 6 5 1 7 9 7 . 4 Tactical Retreats 17 | . 1 1 7 . . . 2 1 . 4 1 . . . Traps | -11 -10 -10 -9 -9 -9 -8 -8 -8 -8 -8 -7 -7 -7 -7 ------- Run | Yrd Mat Min Mat Min Exi Min Mat Gar Mat Gar Fac Low Low Dat Traps Triggered 7 | . . . 1 . . . 1 5 . . . . . . Indirectly . | . . . . . . . . . . . . . . . Trap Hack Attempts . | . . . . . . . . . . . . . . . Triggered . | . . . . . . . . . . . . . . . Disarmed . | . . . . . . . . . . . . . . . Reprogrammed . | . . . . . . . . . . . . . . . Reused . | . . . . . . . . . . . . . . . Traps Extracted . | . . . . . . . . . . . . . . . Installed . | . . . . . . . . . . . . . . . Triggered . | . . . . . . . . . . . . . . . Machines | -11 -10 -10 -9 -9 -9 -8 -8 -8 -8 -8 -7 -7 -7 -7 ---------- Run | Yrd Mat Min Mat Min Exi Min Mat Gar Mat Gar Fac Low Low Dat Machines Disabled 22 | . 1 . 2 . . . . 8 . 11 . . . . Max in Single Turn 2 | . 1 . 1 . . . . 2 . 2 . . . . Garrison Relay 12 | . . . . . . . . 5 . 7 . . . . Phase Generator 2 | . . . . . . . . 1 . 1 . . . . Machines Repaired . | . . . . . . . . . . . . . . . Machines Dismantled . | . . . . . . . . . . . . . . . Machines Sabotaged . | . . . . . . . . . . . . . . . Overloaded Fab Kills . | . . . . . . . . . . . . . . . Hacking | -11 -10 -10 -9 -9 -9 -8 -8 -8 -8 -8 -7 -7 -7 -7 --------- Run | Yrd Mat Min Mat Min Exi Min Mat Gar Mat Gar Fac Low Low Dat Machines Accessed 23 | . 1 . 2 . 1 . 4 2 2 2 5 . . 4 Terminals 13 | . 1 . 2 . . . 2 2 1 2 3 . . . Fabricators 1 | . . . . . . . . . . . 1 . . . Repair Stations 1 | . . . . . . . . . . . 1 . . . Recycling Units . | . . . . . . . . . . . . . . . Scanalyzers 1 | . . . . . . . 1 . . . . . . . Garrison Access 2 | . . . . . . . 1 . 1 . . . . . Total Hacks 75 | . 3 . 5 . 4 . 9 4 4 4 11 . . 31 Successful 49 | . 1 . . . 4 . 4 2 2 1 4 . . 31 Failed 25 | . 2 . 5 . . . 4 2 2 3 7 . . . Catastrophic 6 | . 1 . 1 . . . 1 . . 1 2 . . . Database Lockouts 1 | . . . . . . . 1 . . . . . . . Manual 22 | . 3 . 5 . . . 4 . 1 . 9 . . . Terminals 28 | . 3 . 5 . . . 4 4 1 4 7 . . . Fabricators 2 | . . . . . . . . . . . 2 . . . Repair Stations 2 | . . . . . . . . . . . 2 . . . Recycling Units . | . . . . . . . . . . . . . . . Scanalyzers 3 | . . . . . . . 3 . . . . . . . Garrison Access 5 | . . . . . . . 2 . 3 . . . . . Terminal Hacks 43 | . 1 . . . 4 . 2 2 1 1 1 . . 31 Record 15 | . . . . . 4 . . . . . . . . 11 Part Schematic 14 | . 1 . . . . . . . . . . . . 13 Robot Schematic 4 | . . . . . . . . . . . . . . 4 Prototype ID Bank 3 | . . . . . . . . . . . . . . 3 Open Door 1 | . . . . . . . . 1 . . . . . . Branch Access Points 1 | . . . . . . . . . . . 1 . . . Zone Layout 3 | . . . . . . . 2 . 1 . . . . . Garrison Registry 2 | . . . . . . . . 1 . 1 . . . . Fabricator Hacks 2 | . . . . . . . . . . . 2 . . . Load Schematic 1 | . . . . . . . . . . . 1 . . . Build 1 | . . . . . . . . . . . 1 . . . Repair Station Hacks . | . . . . . . . . . . . . . . . Recycling Unit Hacks . | . . . . . . . . . . . . . . . Scanalyzer 1 | . . . . . . . 1 . . . . . . . Retrieve Study 1 | . . . . . . . 1 . . . . . . . Garrison Access Hacks 2 | . . . . . . . 1 . 1 . . . . . Unlock Access 2 | . . . . . . . 1 . 1 . . . . . Unauthorized Hacks 1 | . . . . . . . . . . . 1 . . . Terminals 1 | . . . . . . . . . . . 1 . . . Botnet 1 | . . . . . . . . . . . 1 . . . Fabricators . | . . . . . . . . . . . . . . . Repair Stations . | . . . . . . . . . . . . . . . Recycling Units . | . . . . . . . . . . . . . . . Scanalyzers . | . . . . . . . . . . . . . . . Garrison Access . | . . . . . . . . . . . . . . . Data Cores Recovered . | . . . . . . . . . . . . . . . Used . | . . . . . . . . . . . . . . . Hacking Detections 14 | . 1 . 2 . . . 2 2 1 1 5 . . . Full Trace Events 6 | . 1 . 2 . . . . 1 . 1 1 . . . Feedback Events . | . . . . . . . . . . . . . . . Feedback Blocked . | . . . . . . . . . . . . . . . Robot Schematics Acquired 4 | . . . . . . . . . . . . . . 4 Robots Built . | . . . . . . . . . . . . . . . Authchips . | . . . . . . . . . . . . . . . Time . | . . . . . . . . . . . . . . . Total Robot Build Rating . | . . . . . . . . . . . . . . . Part Schematics Acquired 14 | . 1 . . . . . . . . . . . . 13 Parts Built 1 | . . . . . . . . . . . 1 . . . Authchips . | . . . . . . . . . . . . . . . Time 51 | . . . . . . . . . . . 51 . . . Total Part Build Rating 1 | . . . . . . . . . . . 1 . . . Part Studies Acquired 1 | . . . . . . . 1 . . . . . . . Parts Repaired . | . . . . . . . . . . . . . . . Time . | . . . . . . . . . . . . . . . Parts Recycled . | . . . . . . . . . . . . . . . Recycled Matter . | . . . . . . . . . . . . . . . Retrieved Matter . | . . . . . . . . . . . . . . . Retrieved Components . | . . . . . . . . . . . . . . . Parts Scanalyzed . | . . . . . . . . . . . . . . . Part Schematics Acquired . | . . . . . . . . . . . . . . . Parts Damaged . | . . . . . . . . . . . . . . . Bothacking | -11 -10 -10 -9 -9 -9 -8 -8 -8 -8 -8 -7 -7 -7 -7 ------------ Run | Yrd Mat Min Mat Min Exi Min Mat Gar Mat Gar Fac Low Low Dat Used RIF Installer . | . . . . . . . . . . . . . . . Robots Hacked . | . . . . . . . . . . . . . . . Non-combat . | . . . . . . . . . . . . . . . Combat . | . . . . . . . . . . . . . . . Robot Hacks Applied . | . . . . . . . . . . . . . . . Relay Couplers Released 52 | . . . . . . . . 23 . 29 . . . . Machine Destruction 48 | . . . . . . . . 19 . 29 . . . . Programmers 4 | . . . . . . . . 4 . . . . . . Fabnet Peak Effective % . | . . . . . . . . . . . . . . . Robots Rewired 2 | . . . . . . . . . . . . 2 . . Allies Hacked . | . . . . . . . . . . . . . . . Hacks Repelled . | . . . . . . . . . . . . . . . Allies | -11 -10 -10 -9 -9 -9 -8 -8 -8 -8 -8 -7 -7 -7 -7 -------- Run | Yrd Mat Min Mat Min Exi Min Mat Gar Mat Gar Fac Low Low Dat Total Allies 5 | . . . . 1 . . . 2 . . . 2 . . Largest Group 2 | . . . . 1 . . . 2 2 1 . 2 2 2 Highest-Rated Group 70 | . . . . 31 . . . 70 70 31 . 40 40 40 Highest-Rated Ally 39 | . . . . 31 . . . 39 39 31 . 20 20 20 Initial Warlord ECA Mod 21 | . . . . . . . . . 10 10 21 21 21 21 Total Orders . | . . . . . . . . . . . . . . . Ally Attacks 25 | . . . . . . . . 13 8 4 . . . . Total Damage 348 | . . . . . . . . 180 124 44 . . . . Kills 4 | . . . . . . . . 2 1 1 . . . . Allies Corrupted . | . . . . . . . . . . . . . . . Allies Melted . | . . . . . . . . . . . . . . . Intel | -11 -10 -10 -9 -9 -9 -8 -8 -8 -8 -8 -7 -7 -7 -7 ------- Run | Yrd Mat Min Mat Min Exi Min Mat Gar Mat Gar Fac Low Low Dat Active Infowar (turns) 276 | . . . . . . . . . . . 275 1 . . Terrain 137 | . . . . . . . . . . . 137 . . . Machine Analysis 138 | . . . . . . . . . . . 138 . . . Jamming 1 | . . . . . . . . . . . . 1 . . Robot Analysis Total 154 | . . . . . . . . . . . . . . 154 Derelict Logs Recovered 7 | . . 2 . 2 . . . . . . . 2 1 . Drone Launches . | . . . . . . . . . . . . . . . Drone Recoveries . | . . . . . . . . . . . . . . . Exploration | -11 -10 -10 -9 -9 -9 -8 -8 -8 -8 -8 -7 -7 -7 -7 ------------- Run | Yrd Mat Min Mat Min Exi Min Mat Gar Mat Gar Fac Low Low Dat Turns Passed 9134 | 72 536 519 1051 583 285 106 496 1232 158 1809 1057 689 347 194 Spaces Moved 4629 | 41 265 306 350 357 179 67 203 633 104 786 445 531 279 83 Core 3 | 3 . . . . . . . . . . . . . . Treads 2560 | 38 265 306 350 357 179 67 203 233 . 227 335 . . . Legs 1063 | . . . . . . . . 400 104 559 . . . . Wheels 1003 | . . . . . . . . . . . 110 531 279 83 Hover . | . . . . . . . . . . . . . . . Flight . | . . . . . . . . . . . . . . . Fastest Speed 50 | 50 160 160 160 160 160 160 160 120 120 120 100 100 110 125 Average Speed 149 | 151 160 160 160 160 160 160 160 157 120 167 147 101 119 125 Slowest Speed 320 | 160 160 160 160 160 160 160 160 260 120 260 320 125 125 125 Overloaded Moves . | . . . . . . . . . . . . . . . Propulsion Burnouts . | . . . . . . . . . . . . . . . Robots Hopped . | . . . . . . . . . . . . . . . Potential Cave-ins . | . . . . . . . . . . . . . . . Cave-ins Triggered 1 | . . . . . . . . . . . . . . 1 Exploration Rate (%) 50 | 4 46 82 29 81 54 25 29 88 14 91 12 74 48 78 Regions Visited 14 Branch Regions 7 Pre-discovered Areas 29 | . . 1 . 1 1 . . . . . . 2 . 24 Known Exits Taken 3 | . . . . . . . 1 . 1 . 1 . . . Unknown Exits Taken 9 | 1 1 1 1 1 1 1 . . . . . 1 1 . Scrap Searched 4 | . . . . 1 . . . . . . . 2 1 . Spaces Dug 23 | . . . 4 . . . 5 1 3 . 7 . . 3 Terrain Destroyed 327 | . 8 . 55 . . . 5 79 3 167 7 . . 3 Melee 23 | . . . 4 . . . 5 1 3 . 7 . . 3 Projectile . | . . . . . . . . . . . . . . . AOE 304 | . 8 . 51 . . . . 78 . 167 . . . . Terrain Rammed . | . . . . . . . . . . . . . . . Walls Destroyed . | . . . . . . . . . . . . . . . Machines Disabled . | . . . . . . . . . . . . . . . Actions | -11 -10 -10 -9 -9 -9 -8 -8 -8 -8 -8 -7 -7 -7 -7 --------- Run | Yrd Mat Min Mat Min Exi Min Mat Gar Mat Gar Fac Low Low Dat Total 6059 | 48 342 319 717 365 178 66 314 771 117 1095 674 636 287 130 Wait 684 | . 24 3 264 . . . 58 35 1 158 83 43 4 11 Move 4617 | 40 264 305 349 356 178 66 203 632 104 785 444 530 278 83 Hop . | . . . . . . . . . . . . . . . Pick Up 69 | 2 8 . 12 2 . . 4 7 1 12 16 2 1 2 Fast Attach 52 | 6 5 . 9 . . . . 3 . 10 12 6 1 . Attach 34 | . . 1 . . . . 3 2 . 9 8 6 . 5 Detach 3 | . . . . . . . . . . . 1 1 . 1 Swap 50 | . 1 . 4 2 . . 5 12 1 16 7 . . 2 Drop 76 | . 6 . 11 2 . . 6 6 . 15 20 6 1 3 Fire 108 | . 29 10 39 . . . . 13 . 17 . . . . Melee 314 | . . . 29 3 . . 35 36 10 71 83 22 2 23 Ram . | . . . . . . . . . . . . . . . Kick . | . . . . . . . . . . . . . . . Crush 5 | . 5 . . . . . . . . . . . . . Escape Stasis 25 | . . . . . . . . 25 . . . . . . Rewire 22 | . . . . . . . . . . 2 . 20 . . Trap . | . . . . . . . . . . . . . . . Miscellaneous . | . . . . . . . . . . . . . . . Route ------- -11/Scrapyard -10/Materials (discovered 2 exits: *Mat / [*Min]) -10/Mines -9/Materials -9/Mines (discovered 2 exits: *Mat / *Exi) -9/Exiles -8/Mines -8/Materials (discovered 3 exits: *Fac / *Sto / Gar) -8/Garrison (discovered 3 exits: *Mat x3) -8/Materials -8/Garrison (discovered 3 exits: *Fac x3) -7/Factory (discovered 2 exits: *Low x2) -7/Lower Caves -7/Lower Caves -7/Data Miner (discovered 1 exit: [*Pro]) History --------- Turn | Location | Event 8 | -11/Scrapyard | Discovered new exit (range 15) 73 | -11/Scrapyard | Entered Materials 305 | -10/Materials | Build established: Mutant 374 | -10/Materials | Discovered new exit (range 10) 564 | -10/Materials | Discovered new exit (range 12) 609 | -10/Materials | Entered Mines 689 | -10/Mines | Excavation squad dispatched 689 | -10/Mines | A large section of the Mines collapsed 1090 | -10/Mines | Learned location of Storage (-8) 1090 | -10/Mines | Discovered new exit (range 12) 1128 | -10/Mines | Entered Materials 1128 | -9/Materials | Evolved 2 slots: Propulsion x2 2084 | -9/Materials | Discovered new exit (range 8) 2179 | -9/Materials | Entered Mines 2202 | -9/Mines | Learned Materials stockpile data 2212 | -9/Mines | Discovered new exit (range 15) 2231 | -9/Mines | Received a Mining Laser from a helpful Derelict 2445 | -9/Mines | Received a Rocket Launcher from a helpful Derelict 2706 | -9/Mines | Deemed a non-threat by the Exiles lab entrance 2706 | -9/Mines | Discovered new exit (range 5) 2729 | -9/Mines | Learned location of Zion (-6) 2762 | -9/Mines | Entered Exiles 2806 | -9/Exiles | Met 8R-AWN 2834 | -9/Exiles | Met EX-HEX 2895 | -9/Exiles | Met EX-DEC 3028 | -9/Exiles | Discovered new exit (range 14) 3047 | -9/Exiles | Entered Mines 3047 | -8/Mines | Discovered new exit (range 12) 3118 | -8/Mines | Found a Scrap Suit stashed away for nefarious purposes 3153 | -8/Mines | Entered Materials 3153 | -8/Materials | Evolved 2 slots: Weapon x2 3154 | -8/Materials | Identified exit to Storage 3175 | -8/Materials | Central database locked down 3514 | -8/Materials | Discovered new exit (range 16) 3649 | -8/Materials | Identified exit to Garrison 3649 | -8/Materials | Entered Garrison 3709 | -8/Garrison | Triggered checkpoint 3732 | -8/Garrison | Garrison Relay disabled 4021 | -8/Garrison | Triggered checkpoint 4028 | -8/Garrison | Triggered checkpoint 4103 | -8/Garrison | Discovered new exit (range 8) 4137 | -8/Garrison | Triggered checkpoint 4168 | -8/Garrison | Garrison Relay disabled 4348 | -8/Garrison | Build established: Scavenger-Gladiator 4359 | -8/Garrison | Discovered new exit (range 14) 4453 | -8/Garrison | Discovered new exit (range 16) 4453 | -8/Garrison | Discovered new exit (range 55) 4453 | -8/Garrison | Discovered new exit (range 50) 4544 | -8/Garrison | Garrison Relay disabled 4671 | -8/Garrison | Rescued a captive Derelict 4674 | -8/Garrison | Rescued a captive Derelict 4745 | -8/Garrison | Phase Generator disabled 4783 | -8/Garrison | Triggered checkpoint 4812 | -8/Garrison | Garrison Relay disabled 4825 | -8/Garrison | Garrison Relay disabled 4881 | -8/Garrison | Entered Materials 4881 | -8/Materials | Accompanied by 2 allies 5038 | -8/Materials | Identified exit to Garrison 5039 | -8/Materials | Entered Garrison 5039 | -8/Garrison | Accompanied by 1 ally 5061 | -8/Garrison | Triggered checkpoint 5155 | -8/Garrison | Phase Generator disabled 5174 | -8/Garrison | Discovered new exit (range 92) 5174 | -8/Garrison | Discovered new exit (range 76) 5174 | -8/Garrison | Discovered new exit (range 61) 5247 | -8/Garrison | Core integrity fell below 50% 5248 | -8/Garrison | Build established: Mutant 5384 | -8/Garrison | Garrison Relay disabled 5479 | -8/Garrison | Triggered checkpoint 5516 | -8/Garrison | Destroyed 7 combat bots 5561 | -8/Garrison | Lost 5 parts (1p2n2w) 5799 | -8/Garrison | Triggered checkpoint 5959 | -8/Garrison | Garrison Relay disabled 5980 | -8/Garrison | Garrison Relay disabled 5989 | -8/Garrison | Garrison Relay disabled 6079 | -8/Garrison | Triggered checkpoint 6123 | -8/Garrison | Triggered checkpoint 6179 | -8/Garrison | Garrison Relay disabled 6262 | -8/Garrison | Spotted B-75 Beast 6270 | -8/Garrison | Destroyed B-75 Beast 6319 | -8/Garrison | System corruption reached 10% 6328 | -8/Garrison | System corruption reached 30% 6348 | -8/Garrison | Build established: Scavenger-Mutant 6537 | -8/Garrison | Found Hvy. Insulated Plating 6679 | -8/Garrison | Triggered checkpoint 6749 | -8/Garrison | Triggered checkpoint 6750 | -8/Garrison | Core integrity fell below 20% 6783 | -8/Garrison | Garrison Relay disabled 6814 | -8/Garrison | Build established: Scavenger-Gladiator 6848 | -8/Garrison | Entered Factory 6848 | -7/Factory | Evolved 2 slots: Utility x2 7174 | -7/Factory | Fabricated Cargo Storage Unit (x1) 7252 | -7/Factory | Identified exit to Lower Caves 7619 | -7/Factory | Cargo convoy interrupted 7682 | -7/Factory | Lost 4 parts (2n1u1w) 7905 | -7/Factory | Entered Lower Caves 7952 | -7/Lower Caves | Met a Warlord Commander 7953 | -7/Lower Caves | Learned location of Warlord (-5) 7954 | -7/Lower Caves | Warlord Commander delivered Encrypted Comm Array 7957 | -7/Lower Caves | Found Encrypted Comm Array 8409 | -7/Lower Caves | Attracted the attention of an 0b10 outpost 8411 | -7/Lower Caves | System corruption reached 10% 8503 | -7/Lower Caves | Lost 6 parts (3n2u1w) 8512 | -7/Lower Caves | Learned Factory terminal intel 8572 | -7/Lower Caves | Discovered new exit (range 7) 8594 | -7/Lower Caves | Entered another Lower Caves area 8594 | -7/Lower Caves | Accompanied by 2 allies 8649 | -7/Lower Caves | Encountered a Warlord checkpoint 8725 | -7/Lower Caves | Build established: Mutant 8892 | -7/Lower Caves | Discovered new exit (range 9) 8941 | -7/Lower Caves | Entered Data Miner 8941 | -7/Data Miner | Accompanied by 2 allies 8941 | -7/Data Miner | Discovered new exit (range 6) 8965 | -7/Data Miner | Met Data Miner 9004 | -7/Data Miner | Learned location of Section 7 (-2) 9004 | -7/Data Miner | Acquired the access code to Warlord's prototype stash 9023 | -7/Data Miner | Received God Mode back door access code from Data Miner 9037 | -7/Data Miner | Interfaced with the Data Conduit 9115 | -7/Data Miner | Crushed by falling debris 9133 | -7/Data Miner | Core integrity fell below 50% 9135 | -7/Data Miner | Self-destructed Last Messages --------------- 09114_ The unstable cave ceiling collapses. 09115_ Crushed by falling debris. 09115_ Wheel destroyed. 09115_ System corrupted by crushing effect (+2). 09115_ Core Analyzer destroyed. 09115_ System corrupted by crushing effect (+3). 09115_ Arm. Treads destroyed. 09115_ System corrupted by crushing effect (+2). 09118_ System corrupted: Component data lost. 09121_ Enhanced Grunt suffers critical hit (Smash). 09121_ Destroyed Adv. Heat Sink. 09121_ Enhanced Grunt system corrupted by crushing effect. 09128_ Hvy. Insulated Plating destroyed. 09129_ Great Maul follow-up attack on Enhanced Grunt. 09129_ Mace follow-up attack on Enhanced Grunt. 09132_ Hvy. Deuterium Engine destroyed. 09134_ C/CRGBF